Workbook

Sheet Feuil1
U1: Pts | W1: J
B2: 22ème journée (18 et 19 février) | C2: 2014-03-22 | D2: p | E2: c | F2: +/- | H2: =N3 -> ASM Clermont Auvergne | I2: =O3 -> 64 | J2: =N10 -> U. Bordeaux-Bègles | K2: 55
B3: Perpignan | C3: 4 | D3: 1 | E3: Biarritz | H3: =N4 -> Toulon | I3: =O4 -> 61 | J3: Brive | K3: 51 | M3: =W3 -> 1 | N3: =VLOOKUP(W3,$S$2:$U$17,2,0) -> ASM Clermont Auvergne | O3: =VLOOKUP(W3,$S$2:$U$17,3,0) -> 64 | P3: 1 | S3: =RANK(V3,$V$3:V17) -> 6 | T3: Toulouse | U3: =55+$D$9 -> 57 | V3: =U3+0.1 -> 57.1 | W3: 1
B4: Bayonne | C4: 1 | D4: 4 | E4: U. Bordeaux-Bègles | H4: Montpellier | I4: 61 | J4: Grenoble | K4: 50 | M4: 2 | N4: Toulon | O4: 61 | P4: =P3+1 -> 2 | S4: =RANK(V4,$V$3:$V$18) -> 7 | T4: Racing Métro 92 | U4: =52+$D$7 -> 56 | V4: =U4+0.2 -> 56.2 | W4: =W3+1 -> 2
B5: Castres | C5: 5 | D5: 0 | E5: Brive | H5: Castres Olympique | I5: 60 | J5: Perpignan | K5: 46 | M5: 3 | N5: Montpellier | O5: 61 | P5: =P4+1 -> 3 | S5: =RANK(V5,$V$3:$V$18) -> 3 | T5: Montpellier | U5: =57+$D$6 -> 61 | V5: =U5+0.3 -> 61.3 | W5: =W4+1 -> 3
B6: Oyonnax | C6: 0 | D6: 4 | E6: Montpellier | H6: Stade Français | I6: 58 | J6: Aviron Bayonnais | K6: 44 | M6: 4 | N6: Castres Olympique | O6: 60 | P6: 4 | S6: 2 | T6: Toulon | U6: =60+$D$8 -> 61 | V6: =U6+0.4 -> 61.4 | W6: 4
B7: Grenoble | C7: 0 | D7: 4 | E7: Racing Métro 92 | H7: Toulouse | I7: 57 | J7: Oyonnax | K7: 39 | M7: 5 | N7: Stade Français | O7: 58 | P7: 5 | S7: 1 | T7: ASM Clermont Auvergne | U7: =60+$C$8 -> 64 | V7: =U7+0.5 -> 64.5 | W7: 5
B8: Clermont | C8: 4 | D8: 1 | E8: Toulon | H8: Racing Métro 92 | I8: 56 | J8: Biarritz Olympique | K8: 24 | M8: 6 | N8: Toulouse | O8: 57 | P8: 6 | S8: 14 | T8: Biarritz Olympique | U8: =23+$D$3 -> 24 | V8: =U8+0.6 -> 24.6 | W8: 6
B9: Stade Français | C9: 2 | D9: 2 | E9: Toulouse | H9: 08/03 ecosse France | J9: 15/03 France Irlande | M9: 7 | N9: Racing Métro 92 | O9: 56 | P9: 7 | S9: 12 | T9: Aviron Bayonnais | U9: =43+$C$4 -> 44 | V9: =U9+0.7 -> 44.7 | W9: 7
M10: 8 | N10: U. Bordeaux-Bègles | O10: 55 | P10: 8 | S10: 4 | T10: Castres Olympique | U10: =55+$C$5 -> 60 | V10: =U10+0.8 -> 60.8 | W10: 8
B11: 23ème journée (4 et 5 mars) | C11: 2014-03-28 | H11: =N20 -> Montpellier | I11: =O20 -> 66 | J11: =N27 -> U. Bordeaux-Bègles | K11: =O27 -> 58 | M11: 9 | N11: Brive | O11: 51 | P11: 9 | S11: 5 | T11: Stade Français | U11: =56+$C$9 -> 58 | V11: =U11+0.9 -> 58.9 | W11: 9
B12: Montpellier | C12: 5 | E12: Bayonne | H12: =N21 -> ASM Clermont Auvergne | I12: =O21 -> 65 | J12: =N28 -> Brive | K12: =O28 -> 55 | M12: 10 | N12: Grenoble | O12: 50 | P12: 10 | S12: 11 | T12: Perpignan | U12: =42+$C$3 -> 46 | V12: =U12+0.21 -> 46.21 | W12: 10
B13: Biarritz | C13: 2 | D13: 2 | E13: Castres | H13: Toulon | I13: 65 | J13: Grenoble | K13: 50 | M13: 11 | N13: Perpignan | O13: 46 | P13: 11 | S13: 10 | T13: Grenoble | U13: =50+$C$7 -> 50 | V13: =U13+0.01 -> 50.01 | W13: 11
B14: Brive | C14: 4 | D14: 1 | E14: Clermont | H14: Castres Olympique | I14: 62 | J14: Oyonnax | K14: 48 | M14: 12 | N14: Aviron Bayonnais | O14: 44 | P14: 12 | S14: 13 | T14: Oyonnax | U14: =39+$C$6 -> 39 | V14: =U14+0.02 -> 39.02 | W14: 12
B15: Oyonnax | C15: 5 | E15: Grenoble | H15: Racing Métro 92 | I15: 60 | J15: Perpignan | K15: 46 | M15: 13 | N15: Oyonnax | O15: 39 | P15: 13 | S15: 9 | T15: Brive | U15: =51+$D$5 -> 51 | V15: =U15+0.03 -> 51.03 | W15: 13
B16: U. Bordeaux-Bègles | C16: 4 | E16: Perpignan | H16: Stade Français | I16: 58 | J16: Aviron Bayonnais | K16: 44 | M16: 14 | N16: Biarritz Olympique | O16: 24 | P16: 14 | S16: 8 | T16: U. Bordeaux-Bègles | U16: =51+$D$4 -> 55 | V16: =U16+0.04 -> 55.04 | W16: 14
B17: Stade Français | D17: 4 | E17: Racing Métro 92 | H17: Toulouse | I17: 58 | J17: Biarritz Olympique | K17: 26 | W17: totowsky
B18: Toulon | C18: 4 | D18: 1 | E18: Toulouse | H18: 5 avril 1/4 hcup
B20: 24ème journée (11 et 12 mars) | C20: 2014-04-11 | H20: =N35 -> Montpellier | I20: =O35 -> 70 | J20: =N42 -> Toulouse | K20: =O42 -> 58 | M20: 1 | N20: =VLOOKUP(M20,$S$20:$U$33,2,0) -> Montpellier | O20: =VLOOKUP(M20,$S$20:$U$33,3,0) -> 66 | P20: 1 | S20: =RANK(V20,$V$20:$V$34) -> 7 | T20: Toulouse | U20: =55+$D$9+$D$18 -> 58 | V20: =U20+0.1 -> 58.1 | W20: 1
B21: Racing Métro 92 | C21: 5 | E21: Biarritz | H21: =N36 -> ASM Clermont Auvergne | I21: =O36 -> 69 | J21: =N43 -> Brive | K21: =O43 -> 55 | M21: 2 | N21: =VLOOKUP(M21,$S$20:$U$33,2,0) -> ASM Clermont Auvergne | O21: =VLOOKUP(M21,$S$20:$U$33,3,0) -> 65 | P21: 1 | S21: =RANK(V21,$V$20:$V$34) -> 5 | T21: Racing Métro 92 | U21: =52+$D$7+$D$17 -> 60 | V21: =U21+0.2 -> 60.2 | W21: =W20+1 -> 2
B22: Toulouse | E22: Brive | H22: Toulon | I22: 69 | J22: Perpignan | K22: 51 | M22: =3 -> 3 | N22: Toulon | O22: 65 | P22: 1 | S22: 1 | T22: Montpellier | U22: =57+$D$6+$C$12 -> 66 | V22: =U22+0.3 -> 66.3 | W22: =W21+1 -> 3
B23: Clermont | C23: 4 | E23: Castres | H23: Racing Métro 92 | I23: 65 | J23: Grenoble | K23: 51 | M23: =W23 -> 4 | N23: Castres Olympique | O23: 62 | P23: 1 | S23: 3 | T23: Toulon | U23: =60+$D$8+$C$18 -> 65 | V23: =U23+0.4 -> 65.4 | W23: 4
B24: Grenoble | C24: 1 | D24: 4 | E24: Montpellier | H24: Castres Olympique | I24: 62 | J24: Aviron Bayonnais | K24: 48 | M24: 5 | N24: Racing Métro 92 | O24: 60 | P24: 1 | S24: 2 | T24: ASM Clermont Auvergne | U24: =60+$C$8+$D$14 -> 65 | V24: =U24+0.5 -> 65.5 | W24: 5
B25: Perpignan | C25: 5 | E25: Oyonnax | H25: U. Bordeaux-Bègles | I25: 59 | J25: Oyonnax | K25: 48 | M25: 6 | N25: Stade Français | O25: 58 | P25: 1 | S25: 14 | T25: Biarritz Olympique | U25: =23+$D$3+$C$13 -> 26 | V25: =U25+0.6 -> 26.6 | W25: 6
B26: Bayonne | C26: 4 | E26: Stade Français | H26: Stade Français | I26: 58 | J26: Biarritz Olympique | K26: 26 | M26: 7 | N26: Toulouse | O26: 58 | P26: 1 | S26: 13 | T26: Aviron Bayonnais | U26: =43+$C$4+$D$12 -> 44 | V26: =U26+0.7 -> 44.7 | W26: 7
B27: U. Bordeaux-Bègles | C27: 1 | D27: 4 | E27: Toulon | F27: maz | M27: 8 | N27: U. Bordeaux-Bègles | O27: 58 | P27: 1 | S27: 4 | T27: Castres Olympique | U27: =55+$C$5+$D$13 -> 62 | V27: =U27+0.8 -> 62.8 | W27: 8
M28: 9 | N28: Brive | O28: 55 | P28: 1 | S28: 6 | T28: Stade Français | U28: =56+$C$9+$C$17 -> 58 | V28: =U28+0.9 -> 58.9 | W28: 9
B29: 25ème journée (25, 26 et 27 mars) | C29: 2014-04-18 | H29: =N53 -> Toulon | I29: =O53 -> 73 | J29: =N60 -> U. Bordeaux-Bègles | K29: =O60 -> 59 | M29: 10 | N29: Grenoble | O29: 50 | P29: 1 | S29: 12 | T29: Perpignan | U29: =42+$C$3+$D$16 -> 46 | V29: =U29+0.21 -> 46.21 | W29: 10
B30: Grenoble | C30: 4 | E30: Bayonne | H30: =N54 -> Montpellier | I30: =O54 -> 70 | J30: =N61 -> Brive | K30: =O61 -> 59 | M30: 11 | N30: Oyonnax | O30: 48 | P30: 1 | S30: 10 | T30: Grenoble | U30: =50+$C$7+$D$15 -> 50 | V30: =U30+0.01 -> 50.01 | W30: 11
B31: Stade Français | C31: 4 | E31: U. Bordeaux-Bègles | H31: ASM Clermont Auvergne | I31: 69 | J31: Grenoble | K31: 55 | M31: 12 | N31: Perpignan | O31: 46 | P31: 1 | S31: 11 | T31: Oyonnax | U31: =39+$C$6+$C$15+$C$48 -> 48 | V31: =U31+0.02 -> 48.02 | W31: 12
B32: Biarritz | D32: 4 | E32: Brive | H32: Racing Métro 92 | I32: 69 | J32: Perpignan | K32: 51 | M32: 13 | N32: Aviron Bayonnais | O32: 44 | P32: 1 | S32: 9 | T32: Brive | U32: =51+$D$5+$C$14 -> 55 | V32: =U32+0.03 -> 55.03 | W32: 13
B33: Racing Métro 92 | C33: 4 | E33: Clermont | H33: Castres Olympique | I33: 66 | J33: Aviron Bayonnais | K33: 48 | M33: 14 | N33: Biarritz Olympique | O33: 26 | P33: 1 | S33: 8 | T33: U. Bordeaux-Bègles | U33: =50+$D$4+$C$16+$D$48 -> 58 | V33: =U33+0.04 -> 58.04 | W33: 14
B34: Castres | C34: 4 | E34: Montpellier | H34: Stade Français | I34: 62 | J34: Oyonnax | K34: 48
B35: Perpignan | D35: 4 | E35: Toulon | H35: Toulouse | I35: 62 | J35: Biarritz Olympique | K35: 26 | M35: =W35 -> 1 | N35: =VLOOKUP(M35,$S$35:$U$49,2,0) -> Montpellier | O35: =VLOOKUP(M35,$S$35:$U$49,3,0) -> 70 | P35: 1 | S35: =RANK($V35,$V$35:$V$49) -> 8 | T35: Toulouse | U35: =55+$D$9+$D$18+$C$22 -> 58 | V35: =U35+0.1 -> 58.1 | W35: 1
B36: Oyonnax | C36: 0 | D36: 4 | E36: Toulouse | F36: maz | H36: 27/04 1/2 hcup | M36: 2 | N36: =VLOOKUP(M36,$S$35:$U$49,2,0) -> ASM Clermont Auvergne | O36: =VLOOKUP(M36,$S$35:$U$49,3,0) -> 69 | P36: 1 | S36: =RANK($V36,$V$35:$V$49) -> 4 | T36: Racing Métro 92 | U36: =52+$D$7+$C$21+$D$17 -> 65 | V36: =U36+0.2 -> 65.2 | W36: =W35+1 -> 2
M37: 3 | N37: Toulon | O37: 69 | P37: 1 | S37: 1 | T37: Montpellier | U37: =57+$D$6+$D$24+$C$12 -> 70 | V37: =U37+0.3 -> 70.3 | W37: =W36+1 -> 3
B38: 26ème journée (1 et 2 avril) | C38: 2014-05-02 | H38: =N69 -> Toulon | I38: 77 | J38: =N76 -> Stade Français | K38: 62 | M38: 4 | N38: Racing Métro 92 | O38: 65 | P38: 1 | S38: 3 | T38: Toulon | U38: =60+$D$8+$D$27+$C$18 -> 69 | V38: =U38+0.4 -> 69.4 | W38: 4
B39: U. Bordeaux-Bègles | C39: 4 | E39: Biarritz | H39: ASM Clermont Auvergne | I39: 74 | J39: Castres Olympique | K39: 61 | M39: 5 | N39: Castres Olympique | O39: 62 | P39: 1 | S39: 2 | T39: ASM Clermont Auvergne | U39: =60+$C$8+$C$23+$D$14 -> 69 | V39: =U39+0.5 -> 69.5 | W39: 5
B40: Bayonne | C40: 4 | E40: Castres | H40: Montpellier | I40: 74 | J40: Grenoble | K40: 55 | M40: 6 | N40: U. Bordeaux-Bègles | O40: 59 | P40: 1 | S40: 14 | T40: Biarritz Olympique | U40: =23+$D$3+$D$21+$C$13 -> 26 | V40: =U40+0.6 -> 26.6 | W40: 6
B41: Toulouse | C41: 5 | E41: Grenoble | H41: Racing Métro 92 | I41: 69 | J41: Aviron Bayonnais | K41: 52 | M41: 7 | N41: Stade Français | O41: 58 | P41: 1 | S41: 12 | T41: Aviron Bayonnais | U41: =43+$C$4+$C$26+$D$12 -> 48 | V41: =U41+0.7 -> 48.7 | W41: 7
B42: Brive | C42: 4 | E42: Oyonnax | H42: Toulouse | I42: 67 | J42: Perpignan | K42: 51 | M42: 8 | N42: Toulouse | O42: 58 | P42: 1 | S42: 5 | T42: Castres Olympique | U42: =55+$C$5+$D$23+$D$13 -> 62 | V42: =U42+0.8 -> 62.8 | W42: 8
B43: Toulon | C43: 4 | E43: Stade Français | H43: U. Bordeaux-Bègles | I43: 63 | J43: Oyonnax | K43: 48 | M43: 9 | N43: Brive | O43: 55 | P43: 1 | S43: 7 | T43: Stade Français | U43: =56+$C$9+$D$26+$C$17 -> 58 | V43: =U43+0.9 -> 58.9 | W43: 9
B44: Clermont | C44: 5 | E44: Perpignan | H44: Brive | I44: 63 | J44: Biarritz Olympique | K44: 26 | M44: 10 | N44: Perpignan | O44: 51 | P44: 1 | S44: 10 | T44: Perpignan | U44: =42+$C$3+$C$25+$D$16 -> 51 | V44: =U44+0.21 -> 51.21 | W44: 10
B45: Montpellier | C45: 4 | E45: Racing Métro 92 | H45: barrage top 14 9/05 1/2 16/05 24/05 finale hcup finale top 14 31/05 | M45: 11 | N45: Grenoble | O45: 51 | P45: 1 | S45: 11 | T45: Grenoble | U45: =50+$C$7+$C$24+$D$15 -> 51 | V45: =U45+0.01 -> 51.01 | W45: 11
M46: 12 | N46: Aviron Bayonnais | O46: 48 | P46: 1 | S46: 13 | T46: Oyonnax | U46: =39+$C$6+$D$25+$C$15+$C$48 -> 48 | V46: =U46+0.02 -> 48.02 | W46: 12
B47: match en retard | M47: 13 | N47: Oyonnax | O47: 48 | P47: 1 | S47: 9 | T47: Brive | U47: =51+$D$5+$D$22+$C$14 -> 55 | V47: =U47+0.03 -> 55.03 | W47: 13
B48: Oyonnax | C48: 4 | E48: U. Bordeaux-Bègles | M48: 14 | N48: Biarritz Olympique | O48: 26 | P48: 1 | S48: 6 | T48: U. Bordeaux-Bègles | U48: =50+$C$27+$C$16+$D$4+$D$48 -> 59 | V48: =U48+0.04 -> 59.04 | W48: 14
M53: =W53 -> 1 | N53: =VLOOKUP(W53,$S$53:$U$67,2,0) -> Toulon | O53: =VLOOKUP(W53,$S$53:$U$67,3,0) -> 73 | P53: 1 | S53: =RANK(V53,$V$53:$V$67) -> 7 | T53: Toulouse | U53: =55+$D$9+$D$36+$D$18+$C$22 -> 62 | V53: =U53+0.1 -> 62.1 | W53: 1
M54: 2 | N54: =VLOOKUP(W54,$S$53:$U$67,2,0) -> Montpellier | O54: =VLOOKUP(W54,$S$53:$U$67,3,0) -> 70 | P54: =P53+1 -> 2 | S54: =RANK(V54,$V$53:$V$67) -> 4 | T54: Racing Métro 92 | U54: =52+$D$7+$C$33+$C$21+$D$17 -> 69 | V54: =U54+0.2 -> 69.2 | W54: =W53+1 -> 2
M55: 3 | N55: ASM Clermont Auvergne | O55: 69 | P55: =P54+1 -> 3 | S55: 2 | T55: Montpellier | U55: =57+$D$6+$D$24+$D$34+$C$12 -> 70 | V55: =U55+0.3 -> 70.3 | W55: =W54+1 -> 3
M56: 4 | N56: Racing Métro 92 | O56: 69 | P56: 4 | S56: 1 | T56: Toulon | U56: =60+$D$8+$D$35+$D$27+$C$18 -> 73 | V56: =U56+0.4 -> 73.4 | W56: 4
M57: 5 | N57: Castres Olympique | O57: 66 | P57: 5 | S57: 3 | T57: ASM Clermont Auvergne | U57: =60+$C$8+$D$33+$C$23+$D$14 -> 69 | V57: =U57+0.5 -> 69.5 | W57: 5
M58: 6 | N58: Stade Français | O58: 62 | P58: 6 | S58: 14 | T58: Biarritz Olympique | U58: =23+$D$3+$C$32+$D$21+$C$13 -> 26 | V58: =U58+0.6 -> 26.6 | W58: 6
M59: 7 | N59: Toulouse | O59: 62 | P59: 7 | S59: 12 | T59: Aviron Bayonnais | U59: =43+$C$4+$D$30+$C$26+$D$12 -> 48 | V59: =U59+0.7 -> 48.7 | W59: 7
M60: 8 | N60: U. Bordeaux-Bègles | O60: 59 | P60: 8 | S60: 5 | T60: Castres Olympique | U60: =55+$C$5+$C$34+$D$23+$D$13 -> 66 | V60: =U60+0.8 -> 66.8 | W60: 8
M61: 9 | N61: Brive | O61: 59 | P61: 9 | S61: 6 | T61: Stade Français | U61: =56+$C$9+$C$31+$D$26+$C$17 -> 62 | V61: =U61+0.9 -> 62.9 | W61: 9
M62: 10 | N62: Grenoble | O62: 55 | P62: 10 | S62: 11 | T62: Perpignan | U62: =42+$C$3+$C$35+$C$25+$D$16 -> 51 | V62: =U62+0.21 -> 51.21 | W62: 10
M63: 11 | N63: Perpignan | O63: 51 | P63: 11 | S63: 10 | T63: Grenoble | U63: =50+$C$7+$C$30+$C$24+$D$15 -> 55 | V63: =U63+0.01 -> 55.01 | W63: 11
M64: 12 | N64: Aviron Bayonnais | O64: 48 | P64: 12 | S64: 13 | T64: Oyonnax | U64: =39+$C$6+$C$36+$D$25+$C$15+$C$48 -> 48 | V64: =U64+0.02 -> 48.02 | W64: 12
H65: =N117 -> Toulouse | I65: 69 | J65: =N124 -> Perpignan | K65: 55 | M65: 13 | N65: Oyonnax | O65: 48 | P65: 13 | S65: 9 | T65: Brive | U65: =51+$D$5+$D$22+$C$14+$D$32 -> 59 | V65: =U65+0.03 -> 59.03 | W65: 13
H66: ASM Clermont Auvergne | I66: 67 | J66: Biarritz Olympique | K66: 52 | M66: 14 | N66: Biarritz Olympique | O66: 26 | P66: 14 | S66: 8 | T66: U. Bordeaux-Bègles | U66: =50+$C$27+$C$16+$D$4+$D$31+$D$48 -> 59 | V66: =U66+0.04 -> 59.04 | W66: 14
H67: Toulon | I67: 64 | J67: Castres Olympique | K67: 48
H68: Montpellier | I68: 64 | J68: Grenoble | K68: 41
H69: Aviron Bayonnais | I69: 63 | J69: Brive | K69: 40 | M69: =W69 -> 1 | N69: =VLOOKUP(W69,$S$69:$U$83,2,0) -> Toulon | O69: =VLOOKUP(W69,$S$69:$U$83,3,0) -> 77 | P69: 1 | S69: =RANK(V69,$V$69:$V$83) -> 5 | T69: Toulouse | U69: =55+$D$9+$C$41+$D$36+$D$18+$C$22 -> 67 | V69: =U69+0.1 -> 67.1 | W69: 1
H70: Racing Métro 92 | I70: 63 | J70: Oyonnax | K70: 35 | M70: 2 | N70: =VLOOKUP(W70,$S$69:$U$83,2,0) -> ASM Clermont Auvergne | O70: =VLOOKUP(W70,$S$69:$U$83,3,0) -> 74 | P70: =P69+1 -> 2 | S70: =RANK(V70,$V$69:$V$83) -> 4 | T70: Racing Métro 92 | U70: =52+$D$7+$D$45+$C$33+$C$21+$D$17 -> 69 | V70: =U70+0.2 -> 69.2 | W70: =W69+1 -> 2
H71: Stade Français | I71: 57 | J71: U. Bordeaux-Bègles | K71: 15 | M71: 3 | N71: Montpellier | O71: 74 | P71: =P70+1 -> 3 | S71: 3 | T71: Montpellier | U71: =57+$D$6+$C$45+$D$24+$D$34+$C$12 -> 74 | V71: =U71+0.3 -> 74.3 | W71: =W70+1 -> 3
H72: finale hcup 21 mai | M72: 4 | N72: Racing Métro 92 | O72: 69 | P72: 4 | S72: 1 | T72: Toulon | U72: =60+$D$8+$C$43+$D$35+$D$27+$C$18 -> 77 | V72: =U72+0.4 -> 77.4 | W72: 4
M73: 5 | N73: Toulouse | O73: 67 | P73: 5 | S73: 2 | T73: ASM Clermont Auvergne | U73: =60+$C$8+$C$44+$D$33+$C$23+$D$14 -> 74 | V73: =U73+0.5 -> 74.5 | W73: 5
M74: 6 | N74: U. Bordeaux-Bègles | O74: 63 | P74: 6 | S74: 14 | T74: Biarritz Olympique | U74: =23+$D$3+$D$39+$C$32+$D$21+$C$13 -> 26 | V74: =U74+0.6 -> 26.6 | W74: 6
M75: 7 | N75: Brive | O75: 63 | P75: 7 | S75: 11 | T75: Aviron Bayonnais | U75: =43+$C$4+$C$40+$D$30+$C$26+$D$12 -> 52 | V75: =U75+0.7 -> 52.7 | W75: 7
M76: 8 | N76: Stade Français | O76: 62 | P76: 8 | S76: 9 | T76: Castres Olympique | U76: =55+$C$7+$D$40+$C$34+$D$23+$D$13 -> 61 | V76: =U76+0.8 -> 61.8 | W76: 8
M77: 9 | N77: Castres Olympique | O77: 61 | P77: 9 | S77: 8 | T77: Stade Français | U77: =56+$C$9+$D$43+$C$31+$D$26+$C$17 -> 62 | V77: =U77+0.9 -> 62.9 | W77: 9
M78: 10 | N78: Grenoble | O78: 55 | P78: 10 | S78: 12 | T78: Perpignan | U78: =42+$C$3+$D$44+$C$35+$C$25+$D$16 -> 51 | V78: =U78+0.21 -> 51.21 | W78: 10
M79: 11 | N79: Aviron Bayonnais | O79: 52 | P79: 11 | S79: 10 | T79: Grenoble | U79: =50+$C$7+$D$41+$C$30+$C$24+$D$15 -> 55 | V79: =U79+0.01 -> 55.01 | W79: 11
M80: 12 | N80: Perpignan | O80: 51 | P80: 12 | S80: 13 | T80: Oyonnax | U80: =39+$C$6+$D$42+$C$36+$D$25+$C$15+$C$48 -> 48 | V80: =U80+0.02 -> 48.02 | W80: 12
M81: 13 | N81: Oyonnax | O81: 48 | P81: 13 | S81: 7 | T81: Brive | U81: =51+$D$5+$C$42+$D$22+$C$14+$D$32 -> 63 | V81: =U81+0.03 -> 63.03 | W81: 13
M82: 14 | N82: Biarritz Olympique | O82: 26 | P82: 14 | S82: 6 | T82: U. Bordeaux-Bègles | U82: =50+$C$27+$C$16+$D$4+D31+C39 -> 63 | V82: =U82+0.04 -> 63.04 | W82: 14
M85: =W85 -> 1 | N85: =VLOOKUP(W85,$S$84:$U$99,2,0) -> ASM Clermont Auvergne | O85: =VLOOKUP(W85,$S$85:$U$99,3,0) -> 64 | P85: 1 | S85: =RANK(V85,$V$85:$V$99) -> 5 | T85: Toulouse | U85: =55+$D$9 -> 57 | V85: =U85+0.1 -> 57.1 | W85: 1
M86: 2 | N86: =VLOOKUP(W86,$S$84:$U$99,2,0) -> Toulon | O86: =VLOOKUP(W86,$S$85:$U$99,3,0) -> 61 | P86: =P85+1 -> 2 | S86: =RANK(V86,$V$85:$V$99) -> 6 | T86: Racing Métro 92 | U86: =52+$D$7 -> 56 | V86: =U86+0.2 -> 56.2 | W86: =W85+1 -> 2
M87: 3 | N87: Montpellier | O87: 61 | P87: =P86+1 -> 3 | S87: 3 | T87: Montpellier | U87: =57+$D$6 -> 61 | V87: =U87+0.3 -> 61.3 | W87: =W86+1 -> 3
M88: 4 | N88: Stade Français | O88: 58 | P88: 4 | S88: 2 | T88: Toulon | U88: =60+$D$8 -> 61 | V88: =U88+0.4 -> 61.4 | W88: 4
M89: 5 | N89: Toulouse | O89: 57 | P89: 5 | S89: 1 | T89: ASM Clermont Auvergne | U89: =60+$C$8 -> 64 | V89: =U89+0.5 -> 64.5 | W89: 5
M90: 6 | N90: Racing Métro 92 | O90: 56 | P90: 6 | S90: 14 | T90: Biarritz Olympique | U90: =21+$D$3 -> 22 | V90: =U90+0.6 -> 22.6 | W90: 6
M91: 7 | N91: Castres Olympique | O91: 55 | P91: 7 | S91: 12 | T91: Aviron Bayonnais | U91: =39+$C$4 -> 40 | V91: =U91+0.7 -> 40.7 | W91: 7
M92: 8 | N92: U. Bordeaux-Bègles | O92: 54 | P92: 8 | S92: 7 | T92: Castres Olympique | U92: =55+$C$7 -> 55 | V92: =U92+0.8 -> 55.8 | W92: 8
M93: 9 | N93: Brive | O93: 51 | P93: 9 | S93: 4 | T93: Stade Français | U93: =56+$C$9 -> 58 | V93: =U93+0.9 -> 58.9 | W93: 9
M94: 10 | N94: Grenoble | O94: 50 | P94: 10 | S94: 11 | T94: Perpignan | U94: =42+$C$3 -> 46 | V94: =U94+0.21 -> 46.21 | W94: 10
M95: 11 | N95: Perpignan | O95: 46 | P95: 11 | S95: 10 | T95: Grenoble | U95: =50+$C$7 -> 50 | V95: =U95+0.01 -> 50.01 | W95: 11
M96: 12 | N96: Aviron Bayonnais | O96: 40 | P96: 12 | S96: 13 | T96: Oyonnax | U96: =36+$C$6 -> 36 | V96: =U96+0.02 -> 36.02 | W96: 12
M97: 13 | N97: Oyonnax | O97: 36 | P97: 13 | S97: 9 | T97: Brive | U97: =51+$D$5 -> 51 | V97: =U97+0.03 -> 51.03 | W97: 13
M98: 14 | N98: Biarritz Olympique | O98: 22 | P98: 14 | S98: =RANK($V$16,$V$3:$V$17) -> 8 | T98: U. Bordeaux-Bègles | U98: =50+$D$4 -> 54 | V98: =U98+0.04 -> 54.04 | W98: 14
M101: =W101 -> 1 | N101: =VLOOKUP(W101,$S$101:$U$1114,2,0) -> Toulouse | O101: =VLOOKUP(W101,$S$101:$U$1114,3,0) -> 69 | P101: 1 | S101: =RANK(V101,$V$101:$V$114) -> 1 | T101: Toulouse | U101: =60+$C$61+$D$51+$D$39+$D$31+$C$23+$D$15+$C$5 -> 69 | V101: =U101+0.1 -> 69.1 | W101: 1
M102: 2 | N102: =VLOOKUP(W102,$S$101:$U$1114,2,0) -> ASM Clermont Auvergne | O102: =VLOOKUP(W102,$S$101:$U$1114,3,0) -> 67 | P102: =P101+1 -> 2 | S102: =RANK(V102,$V$101:$V$114) -> 6 | T102: Racing Métro 92 | U102: =53+$C$58+$D$48+$D$40+$C$31+$D$22+$D$13+$D$4 -> 63 | V102: =U102+0.2 -> 63.2 | W102: =W101+1 -> 2
M103: 3 | N103: Toulon | O103: 64 | P103: =P102+1 -> 3 | S103: 4 | T103: Montpellier | U103: =52+$D$62+$C$50+$D$42+$C$34+$D$24+$C$17+$D$7 -> 64 | V103: =U103+0.3 -> 64.3 | W103: =W102+1 -> 3
M104: 4 | N104: Montpellier | O104: 64 | P104: 4 | S104: 3 | T104: Toulon | U104: =49+$C$57+$C$51+$C$43+$D$35+$C$25+$D$18+$D$8 -> 64 | V104: =U104+0.4 -> 64.4 | W104: 4
M105: 5 | N105: Aviron Bayonnais | O105: 63 | P105: 5 | S105: 2 | T105: ASM Clermont Auvergne | U105: =49+$C$63+$D$54+$C$45+$D$36+$D$27+$C$18+$C$9 -> 67 | V105: =U105+0.5 -> 67.5 | W105: 5
M106: 6 | N106: Racing Métro 92 | O106: 63 | P106: 6 | S106: 9 | T106: Biarritz Olympique | U106: =48+$D$59+$C$49+$D$45+$C$32+$C$22+$C$14+$D$5 -> 52 | V106: =U106+0.6 -> 52.6 | W106: 6
M107: 7 | N107: Stade Français | O107: 57 | P107: 7 | S107: 5 | T107: Aviron Bayonnais | U107: =48+$C$60+$D$50+$C$40+$D$32+$D$21+$C$15+$D$9 -> 63 | V107: =U107+0.7 -> 63.7 | W107: 7
M108: 8 | N108: Perpignan | O108: 55 | P108: 8 | S108: 10 | T108: Castres Olympique | U108: =47+$C$59+$D$53+$D$44+$C$35+$C$27+$D$16+$C$7 -> 48 | V108: =U108+0.8 -> 48.8 | W108: 8
M109: 9 | N109: Biarritz Olympique | O109: 52 | P109: 9 | S109: 7 | T109: Stade Français | U109: =44+$D$60+$C$54+$D$43+$D$34+$C$26+$C$12+$D$6 -> 57 | V109: =U109+0.9 -> 57.9 | W109: 9
M110: 10 | N110: Castres Olympique | O110: 48 | P110: 10 | S110: 8 | T110: Perpignan | U110: =41+$D$57+$C$48+$C$39+$D$30+$C$21+$D$12+$D$3 -> 55 | V110: =U110+0.21 -> 55.21 | W110: 10
M111: 11 | N111: Grenoble | O111: 41 | P111: 11 | S111: 11 | T111: Grenoble | U111: =28+$D$58+$D$52+$C$44+$C$36+$D$26+$D$17+$C$8 -> 41 | V111: =U111+0.01 -> 41.01 | W111: 11
M112: 12 | N112: Brive | O112: 40 | P112: 12 | S112: 13 | T112: Oyonnax | U112: =28+$D$63+$C$52+$D$41+$C$30+$C$24+$D$14+$C$4 -> 35 | V112: =U112+0.02 -> 35.02 | W112: 12
M113: 13 | N113: Oyonnax | O113: 35 | P113: 13 | S113: 12 | T113: Brive | U113: =27+$C$62+$D$49+$C$41+$C$33+$D$23+$C$16+$C$6 -> 40 | V113: =U113+0.03 -> 40.03 | W113: 13
M114: 14 | N114: U. Bordeaux-Bègles | O114: 15 | P114: 14 | S114: 14 | T114: U. Bordeaux-Bègles | U114: =5+$D$61+$C$53+$C$42+$D$33+$D$25+$C$13+$C$3 -> 15 | V114: =U114+0.04 -> 15.04 | W114: 14
M117: =W117 -> 1 | N117: =VLOOKUP(W117,$S$117:$U$131,2,0) -> Toulouse | O117: =VLOOKUP(W117,$S$117:$U$131,3,0) -> 69 | P117: 1 | S117: =RANK(V117,$V$117:$V$131) -> 1 | T117: Toulouse | U117: =60+$C$72+$C$61+$D$51+$D$39+$D$31+$C$23+$D$15+$C$5 -> 69 | V117: =U117+0.1 -> 69.1 | W117: 1
M118: 2 | N118: =VLOOKUP(W118,$S$117:$U$131,2,0) -> ASM Clermont Auvergne | O118: =VLOOKUP(W118,$S$117:$U$131,3,0) -> 67 | P118: =P117+1 -> 2 | S118: =RANK(V118,$V$117:$V$131) -> 6 | T118: Racing Métro 92 | U118: =53+$D$67+$C$58+$D$48+$D$40+$C$31+$D$22+$D$13+$D$4 -> 63 | V118: =U118+0.2 -> 63.2 | W118: =W117+1 -> 2
M119: 3 | N119: Toulon | O119: 64 | P119: =P118+1 -> 3 | S119: 4 | T119: Montpellier | U119: =52+$C$71+$D$62+$C$50+$D$42+$C$34+$D$24+$C$17+$D$7 -> 64 | V119: =U119+0.3 -> 64.3 | W119: =W118+1 -> 3
M120: 4 | N120: Montpellier | O120: 64 | P120: 4 | S120: 3 | T120: Toulon | U120: =49+$D$71+$C$57+$C$51+$C$43+$D$35+$C$25+$D$18+$D$8 -> 64 | V120: =U120+0.4 -> 64.4 | W120: 4
M121: 5 | N121: Aviron Bayonnais | O121: 63 | P121: 5 | S121: 2 | T121: ASM Clermont Auvergne | U121: =49+$D$72+$C$63+$D$54+$C$45+$D$36+$D$27+$C$18+$C$9 -> 67 | V121: =U121+0.5 -> 67.5 | W121: 5
M122: 6 | N122: Racing Métro 92 | O122: 63 | P122: 6 | S122: 9 | T122: Biarritz Olympique | U122: =48+$C$68+$D$59+$C$49+$D$45+$C$32+$C$22+$C$14+$D$5 -> 52 | V122: =U122+0.6 -> 52.6 | W122: 6
M123: 7 | N123: Stade Français | O123: 57 | P123: 7 | S123: 5 | T123: Aviron Bayonnais | U123: =48+$D$69+$C$60+$D$50+$C$40+$D$32+$D$21+$C$15+$D$9 -> 63 | V123: =U123+0.7 -> 63.7 | W123: 7
M124: 8 | N124: Perpignan | O124: 55 | P124: 8 | S124: 10 | T124: Castres Olympique | U124: =47+$D$66+$C$59+$D$53+$D$44+$C$35+$C$27+$D$16+$C$7 -> 48 | V124: =U124+0.8 -> 48.8 | W124: 8
M125: 9 | N125: Biarritz Olympique | O125: 52 | P125: 9 | S125: 7 | T125: Stade Français | U125: =44+$C$67+$D$60+$C$54+$D$43+$D$34+$C$26+$C$12+$D$6 -> 57 | V125: =U125+0.9 -> 57.9 | W125: 9
M126: 10 | N126: Castres Olympique | O126: 48 | P126: 10 | S126: 8 | T126: Perpignan | U126: =41+$C$66+$D$57+$C$48+$C$39+$D$30+$C$21+$D$12+$D$3 -> 55 | V126: =U126+0.21 -> 55.21 | W126: 10
M127: 11 | N127: Grenoble | O127: 41 | P127: 11 | S127: 11 | T127: Grenoble | U127: =28+$C$70+$D$58+$D$52+$C$44+$C$36+$D$26+$D$17+$C$8 -> 41 | V127: =U127+0.01 -> 41.01 | W127: 11
M128: 12 | N128: Brive | O128: 40 | P128: 12 | S128: 13 | T128: Oyonnax | U128: =28+$C$69+$D$63+$C$52+$D$41+$C$30+$C$24+$D$14+$C$4 -> 35 | V128: =U128+0.02 -> 35.02 | W128: 12
M129: 13 | N129: Oyonnax | O129: 35 | P129: 13 | S129: 12 | T129: Brive | U129: =27+$D$70+$C$62+$D$49+$C$41+$C$33+$D$23+$C$16+$C$6 -> 40 | V129: =U129+0.03 -> 40.03 | W129: 13
M130: 14 | N130: U. Bordeaux-Bègles | O130: 15 | P130: 14 | S130: 14 | T130: U. Bordeaux-Bègles | U130: =5+$D$68+$D$61+$C$53+$C$42+$D$33+$D$25+$C$13+$C$3 -> 15 | V130: =U130+0.04 -> 15.04 | W130: 14

Sheet pt
A1: 5 | C1: 0 | D1: 0
A2: 4 | C2: 0 | D2: 0
A3: 2 | C3: 0 | D3: 0
A4: 1 | C4: 0 | D4: 0
A5: 0 | C5: 0 | D5: 0
C6: 0 | D6: 0
C7: 0 | D7: 0

Sheet Feuil3
